fUST/lending_fUST_20240412
["ID","MTS","AMOUNT","RATE_DAILY","PERIOD"]
[322211734,1712873438854,-564.14,0.00027397,2]
[322211736,1712873438862,-500.0,0.00027397,2]
[322211738,1712873438872,-502.78102773,0.00027397,2]
[322211740,1712873438884,-400.0,0.00027397,2]
[322211742,1712873438893,-166.666666,0.00027397,2]
[322211744,1712873438903,-150.0,0.00027491,2]
[322211746,1712873438912,-1000.0,0.000275,2]
[322211748,1712873438921,-1604.64586294,0.00027571,2]
[322211750,1712873438930,-155.85139748,0.00027665,3]
[322211752,1712873438939,-379.20858322,0.00027669,2]
[322211754,1712873438948,-259.25777893,0.00027669,2]
[322211756,1712873438958,-5292.72891486,0.00027669,2]
[322211758,1712873438967,-155.24484011,0.00027669,2]
[322211760,1712873438978,-2548.40467265,0.00027669,2]
[322211762,1712873438987,-2120.63245232,0.00027669,2]
[322211764,1712873438996,-1310.96630797,0.00027669,2]
[322211765,1712873439006,-278.36597163,0.00027669,2]
[322211767,1712873439015,-584.88080006,0.00027669,2]
[322211768,1712873439024,-500.0,0.00027669,2]
[322211769,1712873439034,-353.86074834,0.0002767,2]
[322211770,1712873439043,-298.95072335,0.0002767,2]
[322211771,1712873439052,-289.80982697,0.0002767,2]
[322211772,1712873439062,-500.0,0.0002767,2]
[322211773,1712873439071,-500.0,0.0002767,2]
[322211774,1712873439080,-494.79730632,0.00027671,2]
[322211775,1712873439090,-295.04346083,0.00027671,2]
[322211776,1712873439099,-500.0,0.00027671,2]
[322211777,1712873439108,-500.0,0.00027671,2]
[322211778,1712873439118,-300.1343516,0.00027671,2]
[322211779,1712873439127,-2113.44,0.00027671,2]
[322211780,1712873439137,-500.0,0.00027671,2]
[322211781,1712873439147,-500.0,0.00027671,2]
[322211782,1712873439157,-151.0,0.00027671,2]
[322211783,1712873439166,-500.0,0.00027671,2]
[322211784,1712873439177,-500.0,0.00027671,2]
[322211785,1712873439186,-500.0,0.00027671,2]
[322211786,1712873439196,-500.0,0.00027671,2]
[322211787,1712873439206,-500.0,0.00027671,2]
[322211788,1712873439215,-393.75733556,0.00027671,2]
[322211789,1712873439226,-598.26,0.00027671,2]
[322211790,1712873439235,-500.0,0.00027671,2]
[322211791,1712873439245,-151.0,0.00027671,2]
[322211792,1712873439257,-175.73156,0.00027671,2]
[322211793,1712873439266,-503.97973998,0.00027671,2]
[322211794,1712873439277,-151.0,0.00027671,2]
[322211795,1712873439286,-151.0,0.00027671,2]
[322211796,1712873439296,-151.0,0.00027671,2]
[322211797,1712873439306,-500.0,0.00027671,2]
[322211798,1712873439315,-151.0,0.00027671,2]
[322211799,1712873439324,-500.0,0.00027671,2]
[322211800,1712873439334,-500.0,0.00027671,2]
[322211801,1712873439343,-500.0,0.00027671,2]
[322211802,1712873439352,-500.0,0.00027671,2]
[322211803,1712873439361,-459.32823551,0.00027671,2]
[322211804,1712873439371,-500.0,0.00027671,2]
[322211805,1712873439381,-500.0,0.00027671,2]
[322211806,1712873439390,-500.0,0.00027671,2]
[322211807,1712873439400,-500.0,0.00027671,2]
[322211808,1712873439409,-516.65577381,0.00027671,2]
[322211809,1712873439418,-500.0,0.00027671,2]
[322211810,1712873439427,-500.0,0.00027671,2]
[322211811,1712873439436,-313.310582,0.00027671,2]
[322211812,1712873439447,-500.0,0.00027671,2]
[322211813,1712873439459,-313.310582,0.00027671,2]
[322211814,1712873439469,-557.81,0.00027671,2]
[322211816,1712873439479,-500.0,0.00027671,2]
[322211818,1712873439489,-500.0,0.00027671,2]
[322211819,1712873439499,-500.0,0.00027671,2]
[322211820,1712873439508,-151.0,0.00027671,2]
[322211821,1712873439518,-500.0,0.00027671,2]
[322211822,1712873439528,-601.64,0.00027671,2]
[322211823,1712873439537,-151.0,0.00027671,2]
[322211825,1712873439643,-151.0,0.00027671,2]
[322211826,1712873439653,-500.0,0.00027671,2]
[322211827,1712873439663,-500.0,0.00027671,2]
[322211828,1712873439672,-667.66,0.00027671,2]
[322211829,1712873439682,-511.81432731,0.00027671,2]
[322211830,1712873439691,-500.0,0.00027671,2]
[322211831,1712873439701,-503.85222214,0.00027671,2]
[322211832,1712873439710,-1662.9,0.00027671,2]
[322211833,1712873439720,-500.0,0.00027671,2]
[322211834,1712873439729,-500.0,0.00027671,2]
[322211835,1712873439739,-151.0,0.00027671,2]
[322211836,1712873439749,-151.0,0.00027671,2]
[322211837,1712873439759,-500.0,0.00027671,2]
[322211838,1712873439768,-500.0,0.00027671,2]
[322211839,1712873439778,-500.0,0.00027671,2]
[322211840,1712873439787,-500.0,0.00027671,2]
[322211841,1712873439797,-151.0,0.00027671,2]
[322211842,1712873439807,-151.0,0.00027671,2]
[322211843,1712873439816,-1330.87,0.00027671,2]
[322211844,1712873439825,-500.0,0.00027671,2]
[322211845,1712873439836,-500.0,0.00027671,2]
[322211846,1712873439846,-500.0,0.00027671,2]
[322211847,1712873439855,-500.0,0.00027671,2]
[322211848,1712873439865,-726.18,0.00027671,2]
[322211849,1712873439875,-500.0,0.00027671,2]
[322211850,1712873439885,-1096.91,0.00027671,2]
[322211851,1712873439894,-500.0,0.00027671,2]
[322211852,1712873439903,-500.0,0.00027671,2]
[322211853,1712873439913,-500.0,0.00027671,2]
[322211854,1712873439923,-151.0,0.00027671,2]
[322211855,1712873439932,-428.44114347,0.00027671,2]
[322211856,1712873439942,-500.0,0.00027671,2]
[322211857,1712873439951,-500.0,0.00027671,2]
[322211858,1712873439960,-500.0,0.00027671,2]
[322211859,1712873439971,-151.0,0.00027671,2]
[322211860,1712873439980,-151.0,0.00027671,2]
[322211861,1712873439990,-732.24,0.00027671,2]
[322211862,1712873439999,-151.0,0.00027671,2]
[322211864,1712873440008,-237.428506,0.00027671,2]
[322211865,1712873440017,-151.0,0.00027671,2]
[322211867,1712873440027,-151.0,0.00027671,2]
[322211869,1712873440036,-500.0,0.00027671,2]
[322211870,1712873440045,-759.24,0.00027671,2]
[322211871,1712873440054,-1538.81,0.00027671,2]
[322211872,1712873440063,-500.0,0.00027671,2]
[322211873,1712873440073,-500.0,0.00027671,2]
[322211874,1712873440082,-151.0,0.00027671,2]
[322211875,1712873440092,-151.0,0.00027671,2]
[322211876,1712873440101,-500.0,0.00027671,2]
[322211877,1712873440110,-500.0,0.00027671,2]
[322211878,1712873440120,-151.0,0.00027671,2]
[322211879,1712873440129,-151.0,0.00027671,2]
[322211880,1712873440138,-500.0,0.00027671,2]
[322211881,1712873440147,-505.15384596,0.00027671,2]
[322211882,1712873440157,-3624.96,0.00027671,2]
[322211883,1712873440167,-500.0,0.00027671,2]
[322211884,1712873440177,-1425.41,0.00027671,2]
[322211885,1712873440187,-1135.46,0.00027671,2]
[322211886,1712873440196,-500.0,0.00027671,2]
[322211887,1712873440206,-500.0,0.00027671,2]
[322211888,1712873440215,-783.05,0.00027671,2]
[322211889,1712873440226,-872.71,0.00027671,2]
[322211890,1712873440236,-500.0,0.00027671,2]
[322211891,1712873440246,-14806.5,0.00027671,2]
[322211892,1712873440256,-1270.93758,0.00027671,2]
[322211893,1712873440266,-1270.93758,0.00027671,2]
[322211894,1712873440275,-1270.93758,0.00027671,2]
[322211895,1712873440285,-1270.93758,0.00027671,2]
[322211896,1712873440295,-500.0,0.00027671,2]
[322211897,1712873440305,-500.0,0.00027671,2]
[322211898,1712873440314,-151.0,0.00027671,2]
[322211899,1712873440323,-151.0,0.00027671,2]
[322211900,1712873440332,-151.0,0.00027671,2]
[322211901,1712873440342,-151.0,0.00027671,2]
[322211902,1712873440351,-445.406432,0.00027671,2]
[322211903,1712873440360,-445.406432,0.00027671,2]
[322211904,1712873440369,-436.21761689,0.00027671,2]
[322211905,1712873440385,-63.78238311,0.00027671,2]
[322211906,1712873440394,-445.406432,0.00027671,2]
[322211907,1712873440404,-445.406432,0.00027671,2]
[322211908,1712873440413,-1235.62,0.00027671,2]
[322211909,1712873440422,-756.89405431,0.00027671,2]
[322211910,1712873440434,-1302.49594569,0.00027671,2]
[322211911,1712873440444,-1031.2,0.00027671,2]
[322211912,1712873440456,-500.0,0.00027671,2]
[322211913,1712873440466,-500.0,0.00027671,2]
[322211914,1712873440477,-500.0,0.00027671,2]
[322211915,1712873440487,-736.41,0.00027671,2]
[322211916,1712873440496,-503.00362862,0.00027671,2]
[322211917,1712873440505,-592.26412934,0.00027671,2]
[322211918,1712873440514,-2127.82,0.00027671,2]
[322211919,1712873440524,-981.99,0.00027671,2]
[322211920,1712873440534,-151.0,0.00027671,2]
[322211921,1712873440543,-151.0,0.00027671,2]
[322211922,1712873440552,-151.0,0.00027671,2]
[322211923,1712873440562,-500.0,0.00027671,2]
[322211924,1712873440571,-500.0,0.00027671,2]
[322211925,1712873440581,-500.0,0.00027671,2]
[322211926,1712873440590,-6031.39,0.00027671,2]
[322211927,1712873440599,-427.75441593,0.00027671,2]
[322211928,1712873440609,-958.863126,0.00027671,2]
[322211929,1712873440619,-958.863126,0.00027671,2]
[322211930,1712873440628,-958.863126,0.00027671,2]
[322211931,1712873440637,-958.863126,0.00027671,2]
[322211932,1712873440646,-958.863126,0.00027671,2]
[322211933,1712873440655,-958.863126,0.00027671,2]
[322211934,1712873440664,-500.0,0.00027671,2]
[322211935,1712873440675,-756.82,0.00027671,2]
[322211936,1712873440686,-500.0,0.00027671,2]
[322211937,1712873440695,-500.0,0.00027671,2]
[322211938,1712873440705,-1328.23,0.00027671,2]
[322211939,1712873440716,-3801.18058053,0.00027671,2]
[322211940,1712873440730,-1085.48941947,0.00027671,2]
[322211941,1712873440740,-1063.88,0.00027671,2]
[322211942,1712873440749,-204.616234,0.00027671,2]
[322211943,1712873440758,-204.616234,0.00027671,2]
[322211944,1712873440767,-9761.39811253,0.00027671,2]
[322211945,1712873440779,-2628.27188747,0.00027671,2]
[322211946,1712873440788,-204.616234,0.00027671,2]
[322211947,1712873440797,-204.616234,0.00027671,2]
[322211948,1712873440807,-500.0,0.00027671,2]
[322211949,1712873440816,-151.0,0.00027671,2]
[322211950,1712873440825,-151.000001,0.00027671,2]
[322211951,1712873440834,-151.0,0.00027671,2]
[322211952,1712873440843,-151.0,0.00027671,2]
[322211953,1712873440852,-2865.61,0.00027671,2]
[322211954,1712873440862,-506.03015356,0.00027671,2]
[322211955,1712873440871,-1377.34,0.00027671,2]
[322211956,1712873440880,-593.83444332,0.00027671,2]
[322211957,1712873440890,-1213.52,0.00027671,2]
[322211958,1712873440899,-500.0,0.00027671,2]
[322211959,1712873440909,-2457.11,0.00027671,2]
[322211960,1712873440918,-500.0,0.00027671,2]
[322211961,1712873440928,-607.49812115,0.00027671,2]
[322211962,1712873440937,-151.0,0.00027671,2]
[322211963,1712873440946,-151.0,0.00027671,2]
[322211964,1712873440956,-1412.15,0.00027671,2]
[322211965,1712873440965,-500.0,0.00027671,2]
[322211966,1712873440975,-500.0,0.00027671,2]
[322211967,1712873440984,-500.0,0.00027671,2]
[322211968,1712873440994,-763.73,0.00027671,2]
[322211969,1712873441002,-564.14,0.00027671,2]
[322211970,1712873441011,-500.0,0.00027671,2]
[322211971,1712873441020,-150.0,0.000279,2]
[322211972,1712873441029,-500.0,0.00027943,2]
[322211973,1712873441038,-313.310582,0.00027944,2]
[322211974,1712873441048,-313.310582,0.00027944,2]
[322211975,1712873441057,-151.0,0.00027944,2]
[322211976,1712873441066,-151.0,0.00027944,2]
[322211977,1712873441075,-151.0,0.00027944,2]
[322211978,1712873441085,-151.0,0.00027944,2]
[322211979,1712873441093,-151.0,0.00027944,2]
[322211980,1712873441103,-151.0,0.00027944,2]
[322211981,1712873441112,-151.0,0.00027944,2]
[322211982,1712873441121,-151.0,0.00027944,2]
[322211983,1712873441130,-1270.93758,0.00027944,2]
[322211984,1712873441138,-1270.93758,0.00027944,2]
[322211985,1712873441148,-500.0,0.00027944,2]
[322211986,1712873441158,-387.62173781,0.00027944,2]
[322211987,1712873441167,-204.616234,0.00027944,2]
[322211988,1712873441180,-204.616234,0.00027944,2]
[322211989,1712873441189,-151.0,0.00027944,2]
[322211990,1712873441200,-151.0,0.00027944,2]
[322211991,1712873441210,-754.34968747,0.00027945,2]
[322211992,1712873441220,-505.90336664,0.00027945,2]
[322211993,1712873441229,-500.0,0.00027945,2]
[322211994,1712873441238,-2113.44,0.00027945,2]
[322211995,1712873441248,-8.2544652,0.00027945,2]
[322211996,1712873441261,-350.88481474,0.00027945,2]
[322212025,1712873446070,-717.79,0.00027397,2]
[322212027,1712873446079,-717.79,0.00027671,2]
[322212028,1712873446090,-140.86072006,0.00027945,2]
[322212029,1712873446101,-237.57671786,0.00027945,2]
[322212031,1712873549448,154.86062544,0.00021916,2]
[322212047,1712874353148,-312.04266358,0.0002557,2]
[322212048,1712874448113,-123.89730139,0.0002557,2]
[322212049,1712874448135,-306.00236503,0.00025571,2]
[322212050,1712874448154,-1614.00889865,0.00026154,2]
[322212051,1712874572117,-2073.87940934,0.00025569,2]
[322212052,1712874572141,-162.31236309,0.00025942,2]
[322212053,1712874572163,-175.739345,0.00026042,2]
[322212054,1712874572185,-490.04862315,0.00026154,2]
[322212055,1712874572207,-162.31236307,0.00026305,2]
[322212056,1712874572229,-2949.360188,0.00026316,2]
[322212057,1712874572252,-162.31236307,0.00026668,2]
[322212058,1712874572277,-154.92253873,0.00027,2]
[322212060,1712874606842,254.00157669,0.00024216,2]
[322212218,1712874638199,-162.31236307,0.00027031,2]
[322212219,1712874638209,-1043.66458912,0.00027297,3]
[322212220,1712874638218,-162.31236307,0.00027393,2]
[322212221,1712874638227,-300.0,0.00027394,2]
[322212222,1712874638236,-300.0,0.00027394,2]
[322212223,1712874638245,-1310.96630797,0.00027395,2]
[322212224,1712874638254,-367.52809974,0.00027395,2]
[322212225,1712874638263,-298.95072335,0.00027395,2]
[322212226,1712874638272,-379.20858322,0.00027395,2]
[322212227,1712874638281,-584.67100667,0.00027395,2]
[322212228,1712874638290,-292.35489727,0.00027396,2]
[322212229,1712874638299,-360.85132278,0.00027396,2]
[322212231,1712874638310,-153.60574541,0.00027396,2]
[322212233,1712874638318,-410.89100692,0.00027396,2]
[322212235,1712874638327,-500.0,0.00027397,2]
[322212236,1712874638336,-500.0,0.00027397,2]
[322212239,1712874638345,-500.0,0.00027397,2]
[322212241,1712874638355,-511.81432731,0.00027397,2]
[322212242,1712874638364,-500.0,0.00027397,2]
[322212243,1712874638374,-500.0,0.00027397,2]
[322212244,1712874638383,-500.0,0.00027397,2]
[322212245,1712874638393,-500.0,0.00027397,2]
[322212246,1712874638402,-500.0,0.00027397,2]
[322212247,1712874638412,-500.0,0.00027397,2]
[322212248,1712874638421,-500.0,0.00027397,2]
[322212249,1712874638431,-500.0,0.00027397,2]
[322212250,1712874638441,-507.05941303,0.00027397,2]
[322212251,1712874638450,-500.0,0.00027397,2]
[322212252,1712874638459,-500.0,0.00027397,2]
[322212253,1712874638469,-521.69523389,0.00027397,2]
[322212254,1712874638478,-542.88744001,0.00027397,2]
[322212255,1712874638487,-500.0,0.00027397,2]
[322212256,1712874638496,-500.0,0.00027397,2]
[322212257,1712874638505,-759.24,0.00027397,2]
[322212258,1712874638515,-500.0,0.00027397,2]
[322212259,1712874638525,-503.97973998,0.00027397,2]
[322212260,1712874638534,-500.0,0.00027397,2]
[322212261,1712874638543,-459.32823551,0.00027397,2]
[322212262,1712874638553,-500.0,0.00027397,2]
[322212263,1712874638564,-500.0,0.00027397,2]
[322212264,1712874638573,-500.0,0.00027397,2]
[322212265,1712874638583,-516.65577381,0.00027397,2]
[322212266,1712874638592,-500.0,0.00027397,2]
[322212267,1712874638601,-500.0,0.00027397,2]
[322212268,1712874638611,-500.0,0.00027397,2]
[322212269,1712874638620,-500.0,0.00027397,2]
[322212270,1712874638630,-500.0,0.00027397,2]
[322212271,1712874638639,-500.0,0.00027397,2]
[322212272,1712874638648,-534.57,0.00027397,2]
[322212273,1712874638657,-384.91072681,0.00027397,2]
[322212274,1712874638667,-500.0,0.00027397,2]
[322212275,1712874638676,-312.46210733,0.00027397,2]
[322212276,1712874638686,-500.0,0.00027397,2]
[322212277,1712874638695,-500.0,0.00027397,2]
[322212278,1712874638704,-500.0,0.00027397,2]
[322212279,1712874638714,-500.0,0.00027397,2]
[322212280,1712874638723,-576.57,0.00027397,2]
[322212281,1712874638732,-500.0,0.00027397,2]
[322212282,1712874638741,-639.84,0.00027397,2]
[322212283,1712874638751,-503.85222214,0.00027397,2]
[322212284,1712874638760,-500.0,0.00027397,2]
[322212285,1712874638769,-500.0,0.00027397,2]
[322212286,1712874638779,-500.0,0.00027397,2]
[322212287,1712874638788,-500.0,0.00027397,2]
[322212288,1712874638802,-1593.61,0.00027397,2]
[322212289,1712874638812,-500.0,0.00027397,2]
[322212290,1712874638822,-725.28,0.00027397,2]
[322212291,1712874638831,-1275.42,0.00027397,2]
[322212292,1712874638841,-500.0,0.00027397,2]
[322212293,1712874638851,-500.0,0.00027397,2]
[322212294,1712874638860,-500.0,0.00027397,2]
[322212295,1712874638870,-500.0,0.00027397,2]
[322212299,1712874638879,-500.0,0.00027397,2]
[322212301,1712874638890,-500.0,0.00027397,2]
[322212303,1712874638900,-500.0,0.00027397,2]
[322212305,1712874638909,-500.0,0.00027397,2]
[322212308,1712874638919,-500.0,0.00027397,2]
[322212311,1712874638929,-500.0,0.00027397,2]
[322212314,1712874638938,-695.93,0.00027397,2]
[322212317,1712874638947,-500.0,0.00027397,2]
[322212334,1712874639056,-500.0,0.00027397,2]
[322212336,1712874639067,-1051.21,0.00027397,2]
[322212338,1712874639076,-500.0,0.00027397,2]
[322212340,1712874639085,-500.0,0.00027397,2]
[322212342,1712874639096,-494.79730632,0.00027397,2]
[322212344,1712874639105,-500.0,0.00027397,2]
[322212346,1712874639114,-295.04346083,0.00027397,2]
[322212348,1712874639124,-732.24,0.00027397,2]
[322212350,1712874639134,-500.0,0.00027397,2]
[322212352,1712874639144,-500.0,0.00027397,2]
[322212354,1712874639153,-500.0,0.00027397,2]
[322212356,1712874639162,-590.26017285,0.00027397,2]
[322212358,1712874639171,-172.94391221,0.00027397,2]
[322212360,1712874639181,-1937.32,0.00027397,2]
[322212362,1712874639190,-3624.96,0.00027397,2]
[322212364,1712874639200,-540.64,0.00027397,2]
[322212366,1712874639208,-500.0,0.00027397,2]
[322212368,1712874639217,-1495.89,0.00027397,2]
[322212370,1712874639227,-917.8,0.00027397,2]
[322212371,1712874639236,-300.1343516,0.00027397,2]
[322212373,1712874639245,-500.0,0.00027397,2]
[322212375,1712874639255,-500.0,0.00027397,2]
[322212377,1712874639264,-500.0,0.00027397,2]
[322212379,1712874639274,-1135.46,0.00027397,2]
[322212381,1712874639283,-500.0,0.00027397,2]
[322212383,1712874639293,-500.0,0.00027397,2]
[322212385,1712874639302,-500.0,0.00027397,2]
[322212388,1712874639313,-500.0,0.00027397,2]
[322212390,1712874639322,-500.0,0.00027397,2]
[322212392,1712874639332,-14806.5,0.00027397,2]
[322212394,1712874639341,-500.0,0.00027397,2]
[322212396,1712874639350,-500.0,0.00027397,2]
[322212397,1712874639359,-500.0,0.00027397,2]
[322212399,1712874639368,-1184.13,0.00027397,2]
[322212401,1712874639378,-500.0,0.00027397,2]
[322212404,1712874639388,-3003.28,0.00027397,2]
[322212406,1712874639397,-500.0,0.00027397,2]
[322212407,1712874639407,-500.0,0.00027397,2]
[322212410,1712874639417,-941.07,0.00027397,2]
[322212412,1712874639426,-705.73,0.00027397,2]
[322212414,1712874639437,-500.0,0.00027397,2]
[322212416,1712874639446,-500.0,0.00027397,2]
[322212417,1712874639455,-500.0,0.00027397,2]
[322212419,1712874639464,-500.0,0.00027397,2]
[322212421,1712874639473,-500.0,0.00027397,2]
[322212423,1712874639482,-511.67115905,0.00027397,2]
[322212425,1712874639492,-500.0,0.00027397,2]
[322212427,1712874639501,-500.0,0.00027397,2]
[322212429,1712874639510,-500.0,0.00027397,2]
[322212431,1712874639519,-2039.16,0.00027397,2]
[322212433,1712874639528,-500.0,0.00027397,2]
[322212435,1712874639538,-1412.3,0.00027397,2]
[322212437,1712874639547,-5780.08,0.00027397,2]
[322212439,1712874639557,-500.0,0.00027397,2]
[322212441,1712874639567,-500.0,0.00027397,2]
[322212443,1712874639576,-4683.06,0.00027397,2]
[322212445,1712874639585,-500.0,0.00027397,2]
[322212447,1712874639595,-1319.95,0.00027397,2]
[322212449,1712874639604,-1103.0,0.00027397,2]
[322212451,1712874639614,-500.0,0.00027397,2]
[322212453,1712874639623,-500.0,0.00027397,2]
[322212455,1712874639633,-1162.96,0.00027397,2]
[322212457,1712874639642,-500.0,0.00027397,2]
[322212459,1712874639651,-500.0,0.00027397,2]
[322212461,1712874639660,-598.95,0.00027397,2]
[322212463,1712874639670,-500.0,0.00027397,2]
[322212465,1712874639679,-2746.2,0.00027397,2]
[322212467,1712874639688,-11873.43,0.00027397,2]
[322212469,1712874639697,-500.0,0.00027397,2]
[322212471,1712874639706,-500.0,0.00027397,2]
[322212473,1712874639715,-500.0,0.00027397,2]
[322212475,1712874639724,-731.91,0.00027397,2]
[322212477,1712874639734,-500.0,0.00027397,2]
[322212479,1712874639743,-2354.74,0.00027397,2]
[322212481,1712874639752,-513.31933967,0.00027397,2]
[322212483,1712874639761,-502.78102773,0.00027397,2]
[322212485,1712874639770,-1538.81,0.00027397,2]
[322212487,1712874639779,-565.65845339,0.00027397,2]
[322212489,1712874639788,-500.0,0.00027397,2]
[322212491,1712874639799,-1353.31,0.00027397,2]
[322212493,1712874639807,-500.0,0.00027397,2]
[322212495,1712874639817,-154.93802479,0.00027397,2]
[322212497,1712874639826,-764.6,0.00027397,2]
[322212499,1712874639836,-500.0,0.00027397,2]
[322212501,1712874639845,-400.0,0.00027397,2]
[322212504,1712874639856,-166.666666,0.00027397,2]
[322212507,1712874639867,-153.0,0.000274,2]
[322212510,1712874639876,-153.0,0.000274,2]
[322212511,1712874639886,-153.0,0.000274,2]
[322212512,1712874639896,-1604.64586294,0.00027571,2]
[322212513,1712874639908,-153.0,0.000276,2]
[322212514,1712874639917,-155.85139748,0.00027665,3]
[322212515,1712874639927,-500.0,0.00027669,2]
[322212516,1712874639936,-500.0,0.0002767,2]
[322212517,1712874639944,-500.0,0.0002767,2]
[322212518,1712874639954,-500.0,0.00027671,2]
[322212519,1712874639964,-500.0,0.00027671,2]
[322212520,1712874639972,-500.0,0.00027671,2]
[322212521,1712874639981,-513.8888827,0.00027671,2]
[322212522,1712874639990,-295.42346276,0.00027671,2]
[322212523,1712874640000,-500.0,0.00027671,2]
[322212524,1712874640009,-500.0,0.00027671,2]
[322212525,1712874640019,-500.0,0.00027671,2]
[322212526,1712874640028,-500.0,0.00027671,2]
[322212527,1712874640038,-428.44114347,0.00027671,2]
[322212528,1712874640047,-500.0,0.00027671,2]
[322212529,1712874640057,-500.0,0.00027671,2]
[322212531,1712874640066,-500.0,0.00027671,2]
[322212533,1712874640077,-500.0,0.00027671,2]
[322212535,1712874640087,-759.24,0.00027671,2]
[322212537,1712874640097,-500.0,0.00027671,2]
[322212538,1712874640106,-500.0,0.00027671,2]
[322212540,1712874640115,-500.0,0.00027671,2]
[322212541,1712874640125,-500.0,0.00027671,2]
[322212542,1712874640135,-500.0,0.00027671,2]
[322212543,1712874640144,-500.0,0.00027671,2]
[322212544,1712874640155,-500.0,0.00027671,2]
[322212545,1712874640166,-534.57,0.00027671,2]
[322212546,1712874640176,-500.0,0.00027671,2]
[322212547,1712874640186,-500.0,0.00027671,2]
[322212548,1712874640196,-500.0,0.00027671,2]
[322212549,1712874640206,-576.57,0.00027671,2]
[322212550,1712874640217,-639.84,0.00027671,2]
[322212551,1712874640226,-500.0,0.00027671,2]
[322212552,1712874640238,-500.0,0.00027671,2]
[322212553,1712874640248,-1593.61,0.00027671,2]
[322212554,1712874640258,-500.0,0.00027671,2]
[322212555,1712874640268,-725.28,0.00027671,2]
[322212556,1712874640278,-1275.42,0.00027671,2]
[322212557,1712874640289,-500.0,0.00027671,2]
[322212558,1712874640298,-172.4328642,0.00027671,2]
[322212559,1712874640308,-500.0,0.00027671,2]
[322212560,1712874640320,-500.0,0.00027671,2]
[322212561,1712874640331,-500.0,0.00027671,2]
[322212562,1712874640341,-695.93,0.00027671,2]
[322212563,1712874640351,-500.0,0.00027671,2]
[322212564,1712874640361,-1051.21,0.00027671,2]
[322212565,1712874640373,-500.0,0.00027671,2]
[322212566,1712874640383,-199.06636884,0.00027671,2]
[322212567,1712874640392,-151.0,0.00027671,2]
[322212568,1712874640401,-237.428506,0.00027671,2]
[322212569,1712874640410,-151.0,0.00027671,2]
[322212570,1712874640420,-732.24,0.00027671,2]
[322212571,1712874640429,-500.0,0.00027671,2]
[322212572,1712874640438,-500.0,0.00027671,2]
[322212573,1712874640449,-151.0,0.00027671,2]
[322212574,1712874640458,-1937.32,0.00027671,2]
[322212575,1712874640469,-3624.96,0.00027671,2]
[322212576,1712874640478,-540.64,0.00027671,2]
[322212577,1712874640487,-151.0,0.00027671,2]
[322212578,1712874640496,-1495.89,0.00027671,2]
[322212579,1712874640505,-917.8,0.00027671,2]
[322212580,1712874640514,-500.0,0.00027671,2]
[322212581,1712874640524,-500.0,0.00027671,2]
[322212582,1712874640533,-500.0,0.00027671,2]
[322212583,1712874640543,-1135.46,0.00027671,2]
[322212584,1712874640552,-500.0,0.00027671,2]
[322212585,1712874640565,-500.0,0.00027671,2]
[322212586,1712874640574,-500.0,0.00027671,2]
[322212587,1712874640584,-500.0,0.00027671,2]
[322212588,1712874640593,-1143.843822,0.00027671,2]